bitfinex/quotes_SOLUSD_20250107
["timestamp","ask_amount","ask_price","bid_price","bid_amount"]
[1736255651656,35.109,213.62,213.52,23.776884]
[1736255652945,35.109,213.62,213.56,26.0]
[1736255661068,35.109,213.62,213.52,23.776884]
[1736255664283,35.109,213.62,213.52,49.776884]
[1736255679194,0.5791,213.61,213.52,49.776884]
[1736255679489,11.7041,213.6,213.52,49.776884]
[1736255682393,11.7041,213.6,213.49,23.776884]
[1736255684097,11.7041,213.6,213.51,23.776884]
[1736255685297,11.7041,213.6,213.53,26.0]
[1736255686400,11.7041,213.6,213.48,0.70231745]
[1736255686697,11.7041,213.6,213.49,23.776884]
[1736255689294,11.7041,213.6,213.54,26.0]
[1736255689798,11.7041,213.6,213.51,23.776884]
[1736255690402,11.7041,213.6,213.5,23.776884]
[1736255690589,11.7041,213.6,213.51,0.7022887]
[1736255691102,11.7041,213.6,213.5,0.70228921]
[1736255692797,11.7041,213.6,213.56,26.0]
[1736255703309,20.0,213.62,213.56,26.0]
[1736255703510,20.0,213.62,213.57,23.776884]
[1736255704015,20.0,213.62,213.53,23.776884]
[1736255704195,20.0,213.62,213.55,23.776884]
[1736255706422,20.0,213.62,213.58,26.0]
[1736255710827,20.0,213.62,213.55,24.47904083]
[1736255712123,11.7028,213.63,213.55,24.47904083]
[1736255713406,11.7008,213.66,213.55,24.47904083]
[1736255713806,11.7008,213.66,213.61,26.0]
[1736255716529,11.7008,213.66,213.62,23.776884]
[1736255716927,11.7008,213.66,213.57,23.776884]
[1736255717431,11.7008,213.66,213.59,23.776884]
[1736255717811,11.7008,213.66,213.56,136.7]
[1736255719201,11.6991,213.7,213.59,9.29503173]
[1736255719426,11.6991,213.7,213.61,23.776884]
[1736255719626,11.6991,213.7,213.63,23.776884]
[1736255720231,11.6991,213.7,213.61,23.776884]
[1736255721338,11.6991,213.7,213.59,23.776884]
[1736255721540,11.6991,213.7,213.61,23.776884]
[1736255723210,11.6991,213.7,213.64,23.776884]
[1736255723638,11.6991,213.7,213.61,23.776884]
[1736255726635,11.6991,213.7,213.61,49.776884]
[1736255727435,11.6991,213.7,213.61,23.776884]
[1736255730352,11.6991,213.7,213.61,49.776884]
[1736255731142,11.6991,213.7,213.61,59.07191573]
[1736255731322,11.6991,213.7,213.63,23.776884]
[1736255734348,11.6991,213.7,213.63,49.776884]
[1736255734849,11.6991,213.7,213.63,23.776884]
[1736255737346,31.6964,213.74,213.63,23.776884]
[1736255737851,31.6964,213.74,213.65,23.776884]
[1736255738234,31.6964,213.74,213.63,9.29503173]
[1736255738438,31.6964,213.74,213.64,9.29503173]
[1736255738751,31.6964,213.74,213.65,23.776884]
[1736255741464,31.6964,213.74,213.68,26.0]
[1736255742364,31.6964,213.74,213.69,23.776884]
[1736255742538,11.6964,213.74,213.67,23.776884]
[1736255742943,12.2739,213.77,213.67,9.99679561]
[1736255743241,12.2739,213.77,213.69,23.776884]
[1736255743444,11.6948,213.77,213.69,23.776884]
[1736255744066,11.6926,213.81,213.69,23.776884]
[1736255744639,11.6926,213.81,213.69,9.29503173]
[1736255744847,11.6926,213.81,213.7,29.29503173]
[1736255745049,11.6926,213.81,213.71,23.776884]
[1736255745458,11.6926,213.81,213.74,26.0]
[1736255746258,13.57926708,213.85,213.75,33.07191573]
[1736255746460,11.6906,213.85,213.74,20.0]
[1736255746658,11.6906,213.85,213.72,0.70170633]
[1736255746862,11.6906,213.85,213.7,1.6639]
[1736255747158,7.0814,213.81,213.65,1.6639]
[1736255747342,7.0814,213.81,213.67,9.29503173]
[1736255747547,7.0814,213.81,213.67,43.776884]
[1736255747747,7.0814,213.81,213.67,53.07191573]
[1736255747939,7.0814,213.81,213.67,43.776884]
[1736255748350,11.6931,213.8,213.67,43.776884]
[1736255748968,11.6931,213.8,213.69,23.776884]
[1736255749460,11.6931,213.8,213.74,26.0]
[1736255751043,11.6931,213.8,213.69,23.776884]
[1736255752066,11.6931,213.8,213.68,23.776884]
[1736255753568,11.6931,213.8,213.68,33.07191573]
[1736255754068,11.6931,213.8,213.7,26.0]
[1736255755443,13.54063718,213.8,213.7,26.0]
[1736255756268,20.0,213.77,213.7,26.0]
[1736255756464,31.6952,213.77,213.63,11.27503173]
[1736255757049,31.6952,213.77,213.64,23.776884]
[1736255759473,31.6952,213.77,213.67,26.0]
[1736255762489,31.6952,213.77,213.63,9.29503173]
[1736255762669,31.6952,213.77,213.64,23.776884]
[1736255763193,31.6952,213.77,213.64,33.07191573]
[1736255764493,31.6952,213.77,213.66,23.776884]
[1736255765593,31.6952,213.77,213.66,49.776884]
[1736255766395,31.6952,213.77,213.66,33.07191573]
[1736255766613,31.6952,213.77,213.66,33.7736976]
[1736255767520,11.6952,213.77,213.66,33.07191573]
[1736255767813,11.6931,213.8,213.68,23.776884]
[1736255768484,11.6931,213.8,213.67,23.776884]
[1736255769317,11.6931,213.8,213.67,49.776884]
[1736255769623,11.6931,213.8,213.66,23.776884]
[1736255770041,11.6931,213.8,213.66,33.07191573]
[1736255770890,11.6931,213.8,213.66,23.776884]
[1736255771086,11.6931,213.8,213.66,33.07191573]
[1736255771414,11.6931,213.8,213.67,9.29503173]
[1736255771811,11.6931,213.8,213.67,9.996778]
[1736255772520,11.6931,213.8,213.68,23.776884]
[1736255773127,11.6931,213.8,213.67,9.996778]
[1736255776032,11.6931,213.8,213.69,23.776884]
[1736255776929,11.6931,213.8,213.67,0.70174627]
[1736255777133,11.6931,213.8,213.66,0.70177962]
[1736255777303,35.0794,213.8,213.65,136.7]
[1736255777712,35.0794,213.8,213.66,23.776884]
[1736255778845,35.0794,213.8,213.65,23.776884]
[1736255779641,35.0794,213.8,213.65,33.07191573]
[1736255779951,35.0794,213.8,213.65,59.07191573]
[1736255780249,35.0794,213.8,213.65,33.07191573]
[1736255780846,35.0794,213.8,213.65,23.776884]
[1736255782358,11.6953,213.76,213.65,23.776884]
[1736255782557,0.5791,213.75,213.63,1.98]
[1736255782848,6.7434,213.75,213.65,23.776884]
[1736255784549,11.6964,213.74,213.65,23.776884]
[1736255787449,11.6964,213.74,213.63,1.98]
[1736255787859,11.6964,213.74,213.64,23.776884]
[1736255788263,11.6964,213.74,213.62,23.776884]
[1736255789266,11.6964,213.74,213.62,33.07191573]
[1736255789479,11.6964,213.74,213.64,23.776884]
[1736255793865,11.6964,213.74,213.62,0.70188636]
[1736255794045,11.6964,213.74,213.63,20.0]
[1736255794245,11.6964,213.74,213.64,23.776884]
[1736255813969,6.7434,213.75,213.64,24.47881956]
[1736255817108,18.4396,213.75,213.64,23.776884]
[1736255824143,20.0,213.72,213.59,1.5521]
[1736255824337,6.8687,213.7,213.57,14.65542733]
[1736255825210,6.8687,213.7,213.59,23.776884]
[1736255825804,11.6991,213.69,213.57,23.776884]
[1736255826635,11.6991,213.69,213.54,1.5432]
[1736255826807,11.6991,213.69,213.54,3.5232]
[1736255826989,20.0,213.66,213.55,23.776884]
[1736255827195,31.7012,213.66,213.53,136.7]
[1736255827396,31.7012,213.66,213.52,9.30771366]
[1736255827628,0.5791,213.65,213.53,23.776884]
[1736255829912,11.7019,213.64,213.52,23.776884]
[1736255830336,6.0869,213.63,213.52,23.776884]
[1736255830719,6.0869,213.63,213.5,219.28]
[1736255831108,6.0869,213.63,213.51,23.776884]
[1736255831930,11.703,213.62,213.51,23.776884]
[1736255839165,6.0869,213.63,213.51,9.99734951]
[1736255841055,6.0869,213.63,213.52,23.776884]
[1736255842180,6.0869,213.63,213.52,33.07191573]
[1736255843440,6.0869,213.63,213.52,23.776884]
[1736255847176,6.0869,213.63,213.52,33.07191573]
[1736255847375,6.0869,213.63,213.52,33.77414265]
[1736255847571,6.0869,213.63,213.51,23.776884]
[1736255847778,6.0869,213.63,213.52,0.70223815]
[1736255847946,6.0869,213.63,213.53,9.29503173]
[1736255848150,0.5791,213.65,213.56,23.776884]
[1736255848860,20.5791,213.65,213.56,23.776884]
[1736255849040,0.5791,213.65,213.58,23.776884]
[1736255849553,0.5791,213.65,213.56,23.776884]
[1736255849746,0.5791,213.65,213.56,24.47900545]
[1736255850953,0.5791,213.65,213.56,33.77403718]
[1736255852269,0.5791,213.65,213.56,59.77403718]
[1736255853176,20.5791,213.65,213.56,50.47900545]
[1736255854865,20.5791,213.65,213.55,138.68]
[1736255857852,20.5791,213.65,213.55,164.68]
[1736255858477,20.5791,213.65,213.55,138.68]
[1736255858673,20.5791,213.65,213.55,147.97503173]
[1736255858971,20.5791,213.65,213.56,9.99717116]
[1736255860589,20.0,213.65,213.56,9.99717116]
[1736255860773,20.0,213.65,213.57,9.29503173]
[1736255860972,20.0,213.65,213.58,0.7020442]
[1736255861286,20.0,213.65,213.58,26.7020442]
[1736255861870,20.0,213.65,213.58,0.7020442]
[1736255862078,20.0,213.65,213.57,0.70205542]
[1736255862290,31.7018,213.65,213.52,0.70204804]
[1736255872395,0.5791,213.64,213.52,0.70204804]
[1736255881478,0.5791,213.64,213.53,9.29503173]
[1736255881682,0.5791,213.64,213.54,0.70216537]
[1736255882268,0.5791,213.64,213.54,9.9971971]
[1736255882494,0.5791,213.64,213.54,0.70216537]
[1736255882686,0.5791,213.64,213.55,0.70211234]
[1736255883694,0.5791,213.64,213.56,0.70213186]
[1736255884685,0.5791,213.64,213.55,0.70212452]
[1736255889208,0.5791,213.64,213.55,0.70212452]
[1736255889508,17.7718,213.68,213.55,9.99715625]
[1736255889683,17.7718,213.68,213.55,146.69715625]
[1736255890006,17.7718,213.68,213.55,136.7]
[1736255890803,17.7718,213.68,213.55,145.99503173]
[1736255891109,17.7718,213.68,213.56,9.99706372]
[1736255892615,17.7718,213.68,213.56,146.69706372]
[1736255892810,17.7718,213.68,213.56,145.99503173]
[1736255893008,17.7718,213.68,213.57,0.7020409]
[1736255898617,17.7718,213.68,213.56,1.98]
[1736255906825,20.0,213.65,213.55,0.70213728]
[1736255907004,26.412,213.63,213.51,146.00771366]
[1736255907206,26.412,213.63,213.51,144.02771366]
[1736255907724,26.412,213.63,213.51,136.7]
[1736255907930,26.412,213.63,213.52,0.70226816]
[1736255926837,26.412,213.63,213.52,9.99729989]
[1736255927033,26.412,213.63,213.52,0.70226816]
[1736255927212,26.412,213.63,213.52,9.99729989]
[1736255929436,26.412,213.63,213.52,0.70226816]
[1736255940847,0.5791,213.64,213.54,9.29503173]
[1736255941039,0.5791,213.64,213.55,0.70214247]
[1736255941741,0.5791,213.64,213.53,0.70219084]
[1736255950581,6.1942,213.62,213.53,0.70219084]
[1736255958286,6.1942,213.62,213.51,7.32771366]
[1736255958780,6.1942,213.62,213.5,9.30771366]
[1736255958982,6.1942,213.62,213.5,7.32771366]
[1736255960181,6.1942,213.62,213.53,9.29503173]
[1736255960386,6.1942,213.62,213.52,9.29503173]
[1736255960591,6.1942,213.62,213.53,0.70222267]
[1736255961791,6.1942,213.62,213.51,8.02995315]
[1736255962357,6.1942,213.62,213.51,0.70223949]
[1736255964991,6.1942,213.62,213.51,8.02995315]
[1736255968500,6.1942,213.62,213.51,10.00995315]
[1736255970285,12.2815,213.64,213.52,9.29503173]
[1736255970462,12.2815,213.64,213.53,0.70218262]
[1736255970786,12.2815,213.64,213.53,9.99721435]
[1736255971003,12.2815,213.64,213.53,17.32492801]
[1736255971159,12.2815,213.64,213.54,9.29503173]
[1736255971496,12.2815,213.64,213.55,0.70218448]
[1736255972351,12.2815,213.64,213.54,0.70218954]
[1736255973388,12.2815,213.64,213.53,0.70222161]
[1736255979292,12.2815,213.64,213.52,136.7]
[1736255979588,12.2815,213.64,213.51,9.30771366]
[1736255980160,12.2815,213.64,213.51,1.98]
[1736255983287,12.2815,213.64,213.5,17.32504862]
[1736255983859,6.5354,213.6,213.5,8.03001689]
[1736255986475,6.5354,213.6,213.5,17.32504862]
[1736255988490,6.5354,213.6,213.51,9.29503173]
[1736255990003,6.5354,213.6,213.52,7.32771366]
[1736255990704,6.5354,213.6,213.51,9.29503173]
[1736255992108,11.7034,213.62,213.51,9.29503173]
[1736255992401,11.7034,213.62,213.52,9.99736312]
[1736255992802,11.7034,213.62,213.52,0.70233139]
[1736255992986,11.7034,213.62,213.52,9.99736312]
[1736255997707,11.7034,213.62,213.52,0.70233139]
[1736255998983,11.7034,213.62,213.51,0.70230935]
[1736256003510,11.7034,213.62,213.5,0.70231911]
[1736256007593,11.7034,213.62,213.5,9.99735084]
[1736256008104,11.7034,213.62,213.51,9.29503173]
[1736256009924,11.7034,213.62,213.5,9.99735084]
[1736256013216,0.5791,213.64,213.5,9.99735084]
[1736256013426,20.0,213.62,213.51,9.29503173]
[1736256014827,20.0,213.62,213.5,9.99735084]
[1736256015327,20.0,213.62,213.5,137.40231911]
[1736256015625,20.0,213.62,213.5,145.99503173]
[1736256016531,20.0,213.62,213.5,136.7]
[1736256017935,20.0,213.62,213.51,0.70234214]
[1736256021612,20.0,213.62,213.53,9.29503173]
[1736256021815,20.0,213.62,213.52,9.29503173]
[1736256022719,20.0,213.62,213.5,8.02999019]
[1736256028748,20.0,213.62,213.51,9.29503173]
[1736256029042,20.0,213.62,213.52,9.99728497]
[1736256030046,20.0,213.62,213.53,9.29503173]
[1736256030240,20.0,213.62,213.53,9.99728701]
[1736256030445,20.0,213.62,213.52,9.29503173]
[1736256031941,20.0,213.62,213.53,0.70226795]
[1736256032329,20.0,213.62,213.53,9.99729968]
[1736256036946,0.5791,213.64,213.53,9.99729968]
[1736256037140,0.5791,213.64,213.56,9.29503173]
[1736256037337,0.5791,213.64,213.55,9.29503173]
[1736256037641,0.5791,213.64,213.56,9.9971892]
[1736256039361,0.5791,213.64,213.54,0.70215792]
[1736256045755,0.5791,213.64,213.54,9.99718965]
[1736256047540,0.5791,213.64,213.54,0.70215792]
[1736256049571,0.5791,213.64,213.55,9.29503173]
[1736256050581,0.5791,213.64,213.56,9.29503173]
[1736256050755,0.5791,213.64,213.55,9.29503173]
[1736256057265,0.5791,213.64,213.56,9.99721826]
[1736256057867,0.5791,213.64,213.56,0.70218653]
[1736256071993,0.5791,213.64,213.56,9.99721826]
[1736256072196,6.5505,213.65,213.56,9.99721826]
[1736256072590,11.7004,213.67,213.57,9.29503173]
[1736256072792,11.7004,213.67,213.58,0.70206802]
[1736256072975,0.5791,213.69,213.58,0.70206802]
[1736256073691,20.0,213.67,213.58,0.70206802]
[1736256074694,20.0,213.67,213.58,9.99709975]
[1736256077400,20.0,213.67,213.58,0.70206802]
[1736256081826,20.0,213.67,213.58,9.99709975]
[1736256084296,20.0,213.67,213.58,146.69709975]
[1736256084593,20.0,213.67,213.58,145.99503173]
[1736256085204,20.0,213.67,213.58,136.7]
[1736256085581,20.0,213.67,213.59,0.70206382]
[1736256086914,31.7005,213.67,213.58,136.7]
[1736256088513,11.22277117,213.73,213.65,9.29503173]
[1736256088514,5.45029539,213.73,213.65,9.29503173]
[1736256088817,0.5791,213.74,213.66,0.7018568]
[1736256088984,0.5791,213.74,213.65,0.7018462]
[1736256089382,0.5791,213.74,213.65,9.99687793]
[1736256092315,0.5791,213.74,213.66,9.29503173]
[1736256093391,0.5791,213.74,213.65,0.70182162]
[1736256093617,0.5791,213.74,213.67,9.29503173]
[1736256096000,0.5791,213.74,213.68,9.29503173]
[1736256096900,0.5791,213.74,213.69,9.29503173]
[1736256100106,0.5791,213.74,213.7,9.29503173]
[1736256101395,0.5791,213.74,213.68,9.29503173]
[1736256101628,0.5791,213.74,213.69,9.29503173]
[1736256102303,0.5791,213.74,213.68,9.29503173]
[1736256103721,0.5791,213.74,213.65,0.70177894]
[1736256103929,0.5791,213.74,213.64,138.68]
[1736256104224,0.5791,213.74,213.66,9.29503173]
[1736256104608,0.5791,213.74,213.64,136.7]
[1736256105012,55.473884,213.73,213.62,9.29503173]
[1736256105326,57.453884,213.73,213.57,1.5644]
[1736256105514,57.453884,213.73,213.59,9.29503173]
[1736256105716,57.453884,213.73,213.6,9.29503173]
[1736256106233,23.776884,213.71,213.6,9.29503173]
[1736256106532,35.475384,213.71,213.6,9.29503173]
[1736256108349,20.0,213.68,213.6,9.29503173]
[1736256112636,20.0,213.68,213.61,9.29503173]
[1736256118027,20.0,213.68,213.6,9.29503173]
[1736256119754,20.0,213.68,213.61,9.29503173]
[1736256120610,11.6985,213.71,213.62,9.29503173]
[1736256121308,11.6985,213.71,213.59,0.70205956]
[1736256121534,11.6985,213.71,213.62,9.29503173]
[1736256122549,11.6985,213.71,213.59,0.70205956]
[1736256122847,11.6985,213.71,213.63,9.29503173]
[1736256123026,11.6985,213.71,213.62,9.29503173]
[1736256125053,20.0,213.69,213.62,9.29503173]
[1736256125451,6.4494,213.72,213.63,9.29503173]
[1736256125756,6.4494,213.72,213.64,9.29503173]
[1736256127540,6.4494,213.72,213.63,9.29503173]
[1736256128054,6.4494,213.72,213.62,9.29503173]
[1736256129257,6.4494,213.72,213.63,9.29503173]
[1736256131344,6.4494,213.72,213.62,9.29503173]
[1736256131932,6.4494,213.72,213.61,9.29503173]
[1736256132231,6.4494,213.72,213.62,9.29503173]
[1736256135345,12.2757,213.74,213.62,9.29503173]
[1736256135664,12.2757,213.74,213.64,9.29503173]
[1736256136560,12.2757,213.74,213.65,9.29503173]
[1736256137137,12.2757,213.74,213.64,9.29503173]
[1736256137328,12.2757,213.74,213.65,9.29503173]
[1736256140662,12.2757,213.74,213.62,24.47882946]
[1736256140847,12.2757,213.74,213.64,9.29503173]
[1736256147458,12.2757,213.74,213.63,33.07191573]
[1736256147673,12.2757,213.74,213.65,23.776884]
[1736256152079,12.2757,213.74,213.63,33.07191573]
[1736256153378,12.2757,213.74,213.65,9.29503173]
[1736256153572,12.2757,213.74,213.65,23.776884]
[1736256154054,12.2757,213.74,213.63,33.07191573]
[1736256169791,20.5791,213.74,213.63,33.07191573]
[1736256180780,20.5791,213.74,213.63,23.776884]
[1736256187919,20.5791,213.74,213.65,23.776884]
[1736256191133,0.5791,213.74,213.67,33.07191573]
[1736256193740,0.5791,213.74,213.67,23.776884]
[1736256194329,0.5791,213.74,213.67,9.29503173]
[1736256194530,0.5791,213.74,213.65,9.29503173]
[1736256195023,0.5791,213.74,213.66,23.776884]
[1736256196956,0.5791,213.74,213.64,23.776884]
[1736256197229,0.5791,213.74,213.66,23.776884]
[1736256197419,0.5791,213.74,213.64,9.29503173]
[1736256197799,0.5791,213.74,213.64,23.776884]
[1736256200239,0.5791,213.74,213.65,23.776884]
[1736256200633,0.5791,213.74,213.64,9.29503173]
[1736256201037,0.5791,213.74,213.65,23.776884]
[1736256205643,0.5791,213.74,213.65,33.07191573]
[1736256205828,0.5791,213.74,213.66,23.776884]
[1736256209657,0.5791,213.74,213.65,23.776884]
[1736256210959,0.5791,213.74,213.65,33.07191573]
[1736256211633,0.5791,213.74,213.65,23.776884]
[1736256212471,0.5791,213.74,213.64,0.70187681]
[1736256212637,0.5791,213.74,213.65,23.776884]
[1736256219395,0.5791,213.74,213.65,33.07191573]
[1736256219677,0.5791,213.74,213.65,33.77376277]
[1736256220193,0.5791,213.74,213.65,24.47873104]
[1736256225047,0.5791,213.74,213.67,9.29503173]
[1736256225248,0.5791,213.74,213.67,9.99684257]
[1736256225486,6.0754,213.77,213.68,23.776884]
[1736256225864,6.0754,213.77,213.67,23.776884]
[1736256227189,6.0754,213.77,213.67,33.07191573]
[1736256227790,6.0754,213.77,213.68,9.29503173]
[1736256228088,6.0754,213.77,213.68,33.07191573]
[1736256228301,6.0754,213.77,213.69,23.776884]
[1736256228468,12.2733,213.79,213.69,33.07191573]
[1736256229070,0.5791,213.79,213.72,23.776884]
[1736256229399,0.5791,213.79,213.71,23.776884]
[1736256229613,0.5791,213.79,213.71,9.29503173]
[1736256229911,0.5791,213.79,213.7,33.07191573]
[1736256236318,0.5791,213.79,213.7,23.776884]
[1736256240122,0.5791,213.79,213.7,33.07191573]
[1736256241723,6.1284,213.82,213.7,33.07191573]
[1736256241889,6.1284,213.82,213.7,23.776884]
[1736256242300,0.5791,213.81,213.68,11.27503173]
[1736256242527,0.5791,213.81,213.69,23.776884]
[1736256242919,0.5791,213.81,213.67,11.97674126]
[1736256243214,12.2717,213.81,213.67,11.97674126]
[1736256243424,12.2717,213.81,213.68,23.776884]
[1736256246329,12.2717,213.81,213.68,33.07191573]
[1736256247232,12.2717,213.81,213.69,9.29503173]
[1736256248558,12.2717,213.81,213.71,23.776884]
[1736256248709,12.2717,213.81,213.71,9.29503173]
[1736256249743,12.2717,213.81,213.73,23.776884]
[1736256251757,0.5791,213.81,213.73,23.776884]
[1736256253226,0.5791,213.81,213.73,9.29503173]
[1736256253660,6.1284,213.82,213.73,9.29503173]
[1736256254846,6.1284,213.82,213.71,24.47850629]
[1736256255150,0.5791,213.86,213.75,23.776884]
[1736256255352,0.5791,213.86,213.77,23.776884]
[1736256255532,0.5791,213.86,213.75,9.29503173]
[1736256256030,0.5791,213.86,213.75,33.07191573]
[1736256256229,0.5791,213.86,213.76,23.776884]
[1736256256433,0.5791,213.86,213.76,33.07191573]
[1736256256633,6.1956,213.87,213.78,23.776884]
[1736256256847,6.1956,213.87,213.78,33.07191573]
[1736256257252,0.5791,213.91,213.78,33.07191573]
[1736256257555,0.5791,213.91,213.8,23.776884]
[1736256257761,0.5791,213.91,213.78,9.29503173]
[1736256258322,0.5791,213.91,213.8,23.776884]
[1736256259326,0.5791,213.91,213.83,20.0]
[1736256259548,0.5791,213.96,213.9,9.29503173]
[1736256259753,0.5791,213.96,213.85,23.776884]
[1736256259943,0.5791,213.96,213.85,33.07191573]
[1736256261467,6.65034802,214.04,214.03,20.0]
[1736256261673,25.08846745,214.06,214.03,212.11246011]
[1736256261957,25.08846745,214.06,214.05,9.29503173]
[1736256261958,10.33965766,214.06,214.05,9.29503173]
[1736256262139,162.17328637,214.15,214.05,137.40046391]
[1736256262344,162.17328637,214.15,214.08,145.99503173]
[1736256262552,162.17328637,214.15,214.11,9.29503173]
[1736256263058,1.98,214.24,214.12,23.776884]
[1736256263231,1.98,214.24,214.14,9.29503173]
[1736256263638,1.98,214.24,214.12,23.776884]
[1736256263950,1.98,214.24,214.14,9.29503173]
[1736256264349,1.98,214.24,214.15,9.29503173]
[1736256264537,1.98,214.24,214.14,9.29503173]
[1736256264740,1.98,214.24,214.15,9.29503173]
[1736256265857,1.98,214.24,214.09,0.7003331]
[1736256266038,1.98,214.24,214.12,9.29503173]
[1736256266558,1.98,214.24,214.1,23.776884]
[1736256266730,1.98,214.24,214.09,4.07805019]
[1736256266935,1.98,214.24,214.1,33.07191573]
[1736256267138,20.0,214.23,214.1,35.18314446]
[1736256267342,31.6697,214.23,214.1,26.58852232]
[1736256267564,31.6697,214.23,214.12,9.29503173]
[1736256268265,31.6697,214.23,214.12,23.776884]
[1736256268971,31.6697,214.23,214.12,9.29503173]
[1736256269158,31.6697,214.23,214.13,9.29503173]
[1736256269358,33.8097,214.23,214.14,9.29503173]
[1736256270744,33.8097,214.23,214.13,9.29503173]
[1736256271270,33.8097,214.23,214.07,0.70037276]
[1736256271767,33.8097,214.23,214.11,23.776884]
[1736256271970,31.6697,214.23,214.09,23.776884]
[1736256272261,33.8097,214.23,214.13,9.29503173]
[1736256272466,33.8097,214.23,214.08,2.10173798]
[1736256272764,2.14,214.22,214.11,23.776884]
[1736256273164,31.6697,214.23,214.11,23.776884]
[1736256273165,23.776884,214.28,214.11,23.776884]
[1736256273476,2.14,214.27,214.09,33.07191573]
[1736256273761,2.14,214.26,214.09,33.07191573]
[1736256274172,11.6686,214.25,214.11,23.776884]
[1736256274762,11.6686,214.25,214.12,33.07191573]
[1736256274968,11.6686,214.25,214.12,23.776884]
[1736256275142,20.0,214.22,214.08,9.99539378]
[1736256275342,20.0,214.22,214.09,23.776884]
[1736256275867,20.0,214.25,214.09,23.776884]
[1736256276066,11.6706,214.22,214.11,23.776884]
[1736256276740,11.6706,214.22,214.12,2.09781332]
[1736256277569,11.6706,214.22,214.11,23.776884]
[1736256278372,11.6706,214.22,214.11,9.29503173]
[1736256278568,11.6706,214.22,214.12,9.29503173]
[1736256278870,11.6706,214.22,214.13,9.29503173]
[1736256279171,11.6706,214.22,214.14,9.29503173]
[1736256279471,11.6706,214.22,214.13,9.29503173]
[1736256279970,11.6706,214.22,214.12,9.29503173]
[1736256280677,11.6706,214.22,214.13,2.09641499]
[1736256281789,11.6706,214.22,214.11,9.29503173]
[1736256282284,11.6706,214.22,214.12,23.776884]
[1736256282454,11.6706,214.22,214.12,25.87318147]
[1736256282658,11.6706,214.22,214.14,23.776884]
[1736256282853,11.6706,214.22,214.14,33.07191573]
[1736256283663,20.0,214.25,214.16,23.776884]
[1736256284182,13.8085,214.26,214.16,23.776884]
[1736256285084,13.8085,214.26,214.17,2.09527589]
[1736256285796,13.8085,214.26,214.16,23.776884]
[1736256286483,13.8085,214.26,214.15,23.776884]
[1736256286984,13.8085,214.26,214.14,23.776884]
[1736256287158,13.8085,214.26,214.14,33.07191573]
[1736256287496,13.8085,214.26,214.16,5.44848959]
[1736256288085,13.8085,214.26,214.17,5.44848959]
[1736256288381,2.14,214.26,214.17,5.44848959]
[1736256288588,23.3339,214.28,214.17,5.44848959]
[1736256288791,2.14,214.27,214.17,5.44848959]
[1736256288956,23.3339,214.28,214.18,2.09549366]
[1736256289156,2.14,214.27,214.18,2.09549366]
[1736256289557,2.14,214.27,214.19,2.09549366]
[1736256290382,11.6685,214.26,214.17,23.776884]
[1736256291167,11.6685,214.26,214.16,23.776884]
[1736256291792,20.0,214.25,214.17,2.09797012]
[1736256292387,20.0,214.25,214.18,2.09797012]
[1736256292973,20.0,214.25,214.19,2.09797012]
[1736256293903,20.0,214.25,214.15,23.776884]
[1736256294193,20.0,214.25,214.15,33.07191573]
[1736256294399,20.0,214.25,214.16,5.46457001]
[1736256295079,20.0,214.25,214.17,5.46457001]
[1736256295564,20.0,214.25,214.18,2.10167821]
[1736256295890,11.6685,214.26,214.18,2.10167821]
[1736256296393,11.6685,214.26,214.19,2.10167821]
[1736256296994,11.6685,214.26,214.2,2.10167821]
[1736256297380,11.6685,214.26,214.21,2.10167821]
[1736256298001,11.6685,214.26,214.22,2.10167821]
[1736256298694,11.6685,214.26,214.23,2.10167821]
[1736256299500,11.6685,214.26,214.24,2.10167821]
[1736256300498,11.6685,214.26,214.25,2.10167821]
[1736256301191,11.1665,214.29,214.25,2.10167821]